bitfinex/quotes_ETHUSD_20250801
["timestamp","ask_amount","ask_price","bid_price","bid_amount"]
[1754052771889,0.136,3668.4,3668.1,0.02]
[1754052772415,0.136,3668.2,3668.1,0.02]
[1754052773132,1.0664,3668.2,3668.1,0.02]
[1754052773632,5.3364,3668.2,3668.1,0.02]
[1754052774304,4.27,3668.2,3668.1,0.02]
[1754052774828,4.7261,3668.2,3668.1,0.02]
[1754052775031,4.27,3668.3,3668.1,0.156]
[1754052775829,4.7261,3668.3,3668.1,0.02]
[1754052776195,0.9304,3668.2,3668.1,0.02]
[1754052776426,1.58644,3668.2,3668.1,0.02]
[1754052776595,0.5921,3668.2,3668.1,0.02]
[1754052776796,5.3364,3668.2,3668.1,0.02]
[1754052778191,4.27,3668.2,3668.1,0.02]
[1754052779475,0.136,3668.4,3668.1,0.4783]
[1754052779601,6.55,3668.5,3668.2,3.4583]
[1754052779799,6.55,3668.5,3668.3,1.21474949]
[1754052779800,4.27,3668.4,3668.3,1.21474949]
[1754052780106,4.27,3668.4,3668.3,0.75644949]
[1754052780316,4.7261,3668.4,3668.1,0.02]
[1754052780496,0.9304,3668.3,3668.1,0.02]
[1754052780698,4.27,3668.4,3668.1,0.02]
[1754052781012,4.27,3668.3,3668.1,0.02]
[1754052781212,4.7261,3668.3,3668.1,0.02]
[1754052781410,0.4561,3668.2,3668.1,0.02]
[1754052781612,0.9304,3668.2,3668.1,0.02]
[1754052781913,4.27,3668.3,3668.1,17.87252026]
[1754052782117,4.27,3668.3,3668.2,1.78725203]
[1754052782298,4.27,3668.3,3668.2,2.24555203]
[1754052783033,0.4561,3669.0,3668.2,2.24555203]
[1754052783034,4.27,3668.7,3668.2,2.24555203]
[1754052783270,4.27,3669.1,3668.3,3.7864]
[1754052783471,4.27,3669.1,3668.9,17.25822026]
[1754052783770,4.27,3669.1,3669.0,2.45668869]
[1754052783971,4.27,3669.1,3668.7,0.3281]
[1754052784189,0.9304,3669.0,3668.2,1.78725203]
[1754052784345,4.27,3668.9,3668.2,3.0]
[1754052784547,4.27,3668.8,3668.3,0.4583]
[1754052784765,4.27,3668.8,3668.4,0.4583]
[1754052785137,4.27,3668.8,3668.1,0.02]
[1754052785461,4.27,3668.8,3668.2,3.0]
[1754052785968,4.27,3668.8,3668.3,0.002]
[1754052786284,4.27,3668.7,3668.4,0.4583]
[1754052786653,4.27,3668.7,3668.3,0.002]
[1754052786862,0.9304,3669.2,3668.3,0.002]
[1754052787178,4.27,3669.1,3668.4,0.57943636]
[1754052787675,0.9304,3669.0,3668.4,0.57943636]
[1754052788654,4.27,3668.9,3668.4,1.03773636]
[1754052788980,4.27,3668.8,3668.4,1.03773636]
[1754052789279,4.27,3668.7,3668.5,0.86227364]
[1754052789498,0.9304,3669.3,3668.5,3.40397364]
[1754052789782,4.27,3669.2,3668.5,3.40397364]
[1754052790085,4.27,3669.1,3668.6,0.4583]
[1754052790264,4.269,3669.0,3668.7,2.62829303]
[1754052790442,4.269,3669.0,3668.7,2.16999303]
[1754052790792,4.269,3668.9,3668.8,0.4583]
[1754052792072,4.269,3668.9,3668.7,2.16999303]
[1754052792894,0.4561,3668.8,3668.7,2.16999303]
[1754052793099,4.269,3668.9,3668.5,3.40397364]
[1754052793259,0.9304,3668.8,3668.3,0.002]
[1754052793803,0.9304,3668.7,3668.3,0.002]
[1754052793956,0.9304,3669.2,3668.3,0.002]
[1754052794157,1.0664,3669.2,3668.6,0.136]
[1754052794352,4.269,3669.1,3668.6,0.136]
[1754052794584,5.1994,3669.1,3668.6,0.136]
[1754052794788,0.4561,3669.0,3668.6,0.136]
[1754052794971,4.269,3669.0,3668.6,0.5943]
[1754052795168,4.269,3668.9,3668.7,17.71652026]
[1754052795411,4.269,3668.8,3668.7,17.25822026]
[1754052795764,4.269,3668.8,3668.7,17.39422026]
[1754052796165,4.269,3668.8,3668.7,17.85252026]
[1754052796460,4.269,3668.8,3668.7,17.39422026]
[1754052796777,4.269,3668.8,3668.7,1.89869251]
[1754052796982,4.269,3668.8,3668.7,0.136]
[1754052797380,4.269,3668.8,3668.7,0.6312]
[1754052797581,4.269,3668.8,3668.7,17.88942026]
[1754052798293,4.269,3668.9,3668.7,20.88942026]
[1754052798497,4.269,3668.9,3668.8,3.0]
[1754052798693,4.269,3668.9,3668.8,5.06269251]
[1754052799259,1.0527,3669.6,3668.8,5.06269251]
[1754052799260,0.6024,3669.6,3668.8,5.06269251]
[1754052799467,4.269,3669.5,3668.9,0.52245612]
[1754052799874,0.136,3669.6,3669.4,17.25822026]
[1754052800166,4.269,3669.7,3669.5,2.22102203]
[1754052800498,7.4677,3670.4,3669.6,0.4952]
[1754052800699,4.269,3670.0,3669.7,3.0]
[1754052800873,4.269,3670.0,3669.8,0.4952]
[1754052801078,4.269,3670.0,3669.9,0.75802862]
[1754052802696,7.0174,3670.4,3669.9,0.75802862]
[1754052802882,4.268,3670.3,3669.9,0.75802862]
[1754052803202,2.79148984,3670.2,3670.1,0.136]
[1754052803401,0.4664,3670.3,3670.1,0.136]
[1754052803606,4.268,3670.2,3670.1,0.136]
[1754052804531,4.268,3670.3,3670.1,0.136]
[1754052804869,0.4503,3670.6,3670.1,0.136]
[1754052805067,4.268,3670.5,3670.1,0.136]
[1754052805413,0.4703,3670.9,3670.4,0.136]
[1754052805714,4.268,3670.7,3670.4,0.136]
[1754052806018,0.02,3670.9,3670.6,2.72433827]
[1754052806171,4.269,3670.8,3670.5,0.4952]
[1754052806517,4.269,3670.8,3670.4,0.3281]
[1754052806518,4.269,3670.8,3670.7,2.86027602]
[1754052806721,4.269,3670.8,3670.7,3.50107632]
[1754052807024,0.001,3670.8,3670.7,3.99627632]
[1754052807184,4.269,3670.8,3670.7,3.99627632]
[1754052807519,0.001,3670.8,3670.7,7.02351908]
[1754052807720,0.001,3670.8,3670.7,7.32437632]
[1754052810222,0.001,3671.2,3670.7,7.32437632]
[1754052810223,0.001,3671.2,3671.1,2.72397918]
[1754052810386,0.001,3671.2,3671.1,4.14480925]
[1754052810581,0.001,3671.2,3671.1,4.77600925]
[1754052812437,0.001,3671.2,3671.1,4.28080925]
[1754052813018,0.021,3671.9,3671.4,3.0]
[1754052813187,0.021,3671.9,3671.8,0.136]
[1754052814222,0.021,3671.9,3671.8,2.25727013]
[1754052815057,0.4874,3671.9,3671.8,2.25727013]
[1754052815226,0.9377,3671.9,3671.8,0.136]
[1754052816154,0.4874,3671.9,3671.8,0.136]
[1754052816363,0.021,3671.9,3671.8,0.136]
[1754052816506,0.021,3671.9,3671.8,5.67062203]
[1754052817237,0.021,3671.9,3671.8,8.39408191]
[1754052817440,0.021,3671.9,3671.8,5.67062203]
[1754052817610,0.021,3671.9,3671.8,8.39408191]
[1754052817922,0.021,3671.9,3671.8,5.67062203]
[1754052818320,0.021,3671.9,3671.8,8.39408191]
[1754052818531,0.021,3671.9,3671.8,5.67062203]
[1754052818737,0.021,3671.9,3671.8,8.39408191]
[1754052819648,0.021,3671.9,3671.8,5.67062203]
[1754052820044,0.021,3671.9,3671.8,8.39408191]
[1754052820438,0.021,3671.9,3671.8,5.67062203]
[1754052820750,0.021,3671.9,3671.8,6.48902503]
[1754052820967,0.021,3671.9,3671.8,5.99382503]
[1754052821327,0.4874,3671.9,3671.8,5.99382503]
[1754052822022,0.021,3671.9,3671.8,5.99382503]
[1754052822227,0.021,3671.9,3671.8,8.71728491]
[1754052822831,0.021,3671.9,3671.8,5.99382503]
[1754052824601,0.9377,3671.9,3671.8,3.136]
[1754052825137,0.4874,3671.9,3671.8,3.136]
[1754052826135,0.9377,3671.9,3671.8,3.136]
[1754052828064,0.9377,3671.9,3671.8,0.136]
[1754052830883,0.9377,3671.9,3671.7,0.136]
[1754052831084,0.021,3671.9,3671.7,0.136]
[1754052831269,0.9275,3671.8,3671.7,0.136]
[1754052833078,0.9275,3671.8,3671.1,0.20895501]
[1754052833243,4.262,3671.7,3671.5,0.136]
[1754052833445,0.9275,3671.6,3671.5,0.136]
[1754052833877,1.44855,3671.6,3670.6,0.002]
[1754052834080,0.9275,3671.5,3670.8,0.136]
[1754052834242,0.136,3671.3,3670.6,0.138]
[1754052834442,5.1895,3671.2,3670.6,0.138]
[1754052834677,4.262,3671.2,3670.6,0.138]
[1754052834982,0.9275,3671.1,3670.6,0.138]
[1754052835168,4.262,3671.2,3670.6,0.138]
[1754052835481,0.9275,3671.0,3670.6,0.138]
[1754052835977,0.9275,3670.9,3670.6,0.138]
[1754052836285,4.262,3670.8,3670.6,0.138]
[1754052836588,5.1895,3670.8,3670.6,0.002]
[1754052836783,4.262,3670.8,3670.6,0.002]
[1754052836983,0.9275,3670.7,3670.6,0.002]
[1754052837344,1.59605,3670.7,3670.6,0.002]
[1754052838781,7.87032602,3670.7,3670.6,0.002]
[1754052838956,8.12512824,3670.7,3670.6,0.002]
[1754052839157,8.12512824,3670.7,3670.3,0.002]
[1754052839158,6.27449869,3670.4,3670.3,0.002]
[1754052839375,12.50347996,3670.4,3670.3,0.002]
[1754052839622,3.25682602,3670.7,3670.3,0.002]
[1754052839623,0.86462675,3672.2,3670.3,0.002]
[1754052839778,0.4714,3670.8,3670.3,3.002]
[1754052839978,0.136,3671.3,3670.7,0.136]
[1754052840176,4.52452597,3671.2,3670.5,0.136]
[1754052840367,0.136,3671.0,3670.5,0.136]
[1754052840564,0.9275,3670.9,3670.5,0.136]
[1754052840767,0.136,3671.0,3670.5,0.136]
[1754052840953,4.52540229,3670.9,3670.8,0.136]
[1754052841277,4.271,3670.9,3670.8,0.6197]
[1754052841860,4.271,3670.9,3670.8,0.136]
[1754052842043,5.1985,3670.9,3670.8,0.136]
[1754052842488,4.7424,3670.9,3670.8,0.136]
[1754052842782,0.4714,3670.9,3670.6,0.136]
[1754052842948,4.7414,3670.9,3670.6,0.136]
[1754052843572,4.27,3670.9,3670.6,0.136]
[1754052844146,0.021,3671.9,3671.0,2.72405339]
[1754052844355,0.86462675,3672.2,3672.1,2.72323738]
[1754052844645,0.136,3673.5,3672.1,2.72323738]
[1754052844646,4.324,3672.7,3672.1,4.0741]
[1754052844858,4.324,3672.7,3672.2,3.4837]
[1754052845184,4.323,3672.4,3672.2,6.20686322]
[1754052845347,0.001,3672.7,3672.2,6.66126322]
[1754052845551,0.001,3672.7,3672.2,7.61332064]
[1754052845752,0.001,3672.7,3672.2,7.8201452]
[1754052846191,4.322,3672.5,3672.2,5.09698198]
[1754052846689,4.321,3672.6,3672.2,7.8201452]
[1754052846864,0.001,3672.7,3672.2,7.8201452]
[1754052847399,0.001,3672.7,3672.2,4.64258198]
[1754052848263,0.001,3672.7,3672.2,5.09698198]
[1754052849006,0.02,3674.9,3673.6,3.27212543]
[1754052849303,0.25399113,3674.8,3674.0,5.72182906]
[1754052849510,0.25399113,3674.7,3674.0,3.0]
[1754052849707,0.02,3674.9,3674.0,3.0]
[1754052849708,0.25399113,3674.6,3674.0,3.0]
[1754052849987,1.18149113,3674.5,3674.0,3.136]
[1754052850189,0.25399113,3674.4,3674.0,3.6197]
[1754052850379,0.25399113,3674.3,3674.0,4.0070691]
[1754052850553,1.0835,3674.9,3674.0,4.03428739]
[1754052850754,0.25390369,3674.8,3674.0,4.0070691]
[1754052850987,5.3045,3674.9,3674.0,4.0070691]
[1754052851155,4.357,3674.8,3674.0,4.4614691]
[1754052851360,0.4561,3674.6,3674.0,3.5233691]
[1754052851684,0.4714,3674.5,3674.0,0.136]
[1754052851996,0.4561,3674.3,3674.0,0.136]
[1754052852355,0.9285,3674.1,3674.0,0.136]
[1754052852555,0.9285,3674.1,3673.9,0.136]
[1754052852759,0.001,3674.1,3673.9,0.136]
[1754052853194,0.001,3674.1,3673.9,0.6197]
[1754052853871,0.001,3674.1,3673.9,0.49797]
[1754052854070,0.4724,3674.1,3673.9,0.136]
[1754052854274,0.9275,3674.0,3673.9,0.136]
[1754052854676,0.9275,3674.0,3672.8,3.0]
[1754052854677,0.9275,3674.0,3673.0,0.4837]
[1754052854878,0.9275,3674.0,3673.6,0.136]
[1754052855076,0.9275,3673.9,3673.6,0.136]
[1754052855275,0.137,3674.1,3672.7,17.25822026]
[1754052855276,0.9275,3673.8,3672.7,17.25822026]
[1754052855479,0.001,3674.1,3672.3,0.5096982]
[1754052855480,0.9275,3673.7,3672.3,0.5096982]
[1754052855679,0.9275,3673.6,3672.4,0.4544]
[1754052855880,0.9275,3673.6,3673.1,0.136]
[1754052856081,0.136,3673.7,3673.1,0.136]
[1754052856398,4.355,3673.5,3673.3,0.136]
[1754052856602,0.4568,3673.4,3673.3,0.136]
[1754052856779,0.935,3673.4,3672.5,0.4753]
[1754052856983,0.935,3673.4,3673.1,0.136]
[1754052857164,0.935,3673.3,3673.1,0.136]
[1754052857602,0.001,3674.1,3673.2,0.4753]
[1754052857765,0.001,3674.1,3673.6,3.0]
[1754052858096,0.001,3674.1,3673.7,1.84843909]
[1754052858270,0.001,3674.1,3673.8,2.72192705]
[1754052858680,4.363,3674.1,3673.9,3.65065539]
[1754052858910,4.363,3674.1,3674.0,0.4753]
[1754052859223,4.363,3674.1,3673.7,1.84843909]
[1754052859426,4.361,3674.1,3673.8,1.42735742]
[1754052859642,4.361,3674.1,3673.8,0.95205742]
[1754052859791,4.361,3674.1,3673.8,1.42735742]
[1754052860127,4.36,3674.0,3673.9,0.4753]
[1754052861717,5.295,3674.0,3673.2,0.4753]
[1754052861923,5.295,3674.0,3673.3,2.07335203]
[1754052862080,4.8382,3674.0,3673.4,0.02722273]
[1754052862314,4.36,3674.0,3673.4,0.02722273]
[1754052862822,4.36,3674.0,3673.5,3.0]
[1754052863049,4.36,3674.0,3673.3,4.79567238]
[1754052863253,4.36,3674.0,3673.3,2.54865203]
[1754052863558,4.352,3673.9,3673.3,5.2709446]
[1754052863759,0.001,3674.1,3673.5,3.0]
[1754052864065,4.351,3674.0,3673.7,5.72204904]
[1754052864211,4.351,3674.0,3673.7,3.0]
[1754052864544,4.351,3674.0,3673.8,0.4753]
[1754052864741,4.352,3674.1,3673.8,2.85301457]
[1754052864935,4.352,3674.1,3673.8,2.83121457]
[1754052865109,0.001,3674.1,3673.9,0.4753]
[1754052865305,0.001,3674.1,3674.0,3.67784735]
[1754052865509,0.001,3674.1,3674.0,4.52838071]
[1754052865748,0.001,3674.1,3674.0,1.80655165]
[1754052866046,0.001,3674.1,3674.0,4.52838071]
[1754052866241,0.001,3674.1,3674.0,3.65062906]
[1754052866542,0.001,3674.1,3674.0,3.19712906]
[1754052866745,0.001,3674.1,3674.0,3.65062906]
[1754052866958,0.001,3674.1,3674.0,7.20062906]
[1754052867247,0.001,3674.1,3674.0,7.88065479]
[1754052867641,0.001,3674.1,3674.0,8.01665479]
[1754052867820,0.001,3674.1,3674.0,7.08785479]
[1754052868015,0.001,3674.1,3674.0,5.29482573]
[1754052868216,0.001,3674.1,3674.0,4.84132573]
[1754052868410,0.001,3674.1,3674.0,3.6113]
[1754052868731,0.001,3674.1,3674.0,3.136]
[1754052869113,0.001,3674.1,3674.0,6.78662906]
[1754052869313,0.001,3674.1,3674.0,4.0648]
[1754052869735,0.001,3674.1,3674.0,3.136]
[1754052870943,0.001,3674.1,3674.0,3.97243]
[1754052871350,0.001,3674.1,3674.0,3.49713]
[1754052871562,0.001,3674.1,3674.0,3.136]
[1754052874713,0.4792,3674.1,3674.0,3.136]
[1754052875157,0.136,3675.0,3674.0,3.136]
[1754052875158,0.02,3676.9,3674.4,2.72153276]
[1754052875318,0.4782,3676.3,3675.8,0.136]
[1754052875775,4.363,3676.6,3675.8,23.11471647]
[1754052875918,4.363,3676.6,3675.8,26.62705076]
[1754052876123,4.362,3676.6,3675.8,26.62705076]
[1754052876350,0.57723283,3676.7,3675.8,26.17355076]
[1754052876559,4.361,3676.6,3675.8,22.97775455]
[1754052876772,0.4782,3676.3,3675.8,3.136]
[1754052877059,0.4782,3676.3,3675.8,0.136]
[1754052877433,4.8392,3676.3,3675.8,0.136]
[1754052877952,0.4568,3676.2,3675.8,0.136]
[1754052878269,4.8168,3676.2,3675.8,0.33558401]
[1754052878445,4.8168,3676.2,3675.8,0.136]
[1754052878641,4.358,3676.2,3675.8,0.136]
[1754052878859,0.935,3676.6,3675.8,0.136]
[1754052879165,4.357,3676.3,3675.8,0.6113]
[1754052879367,4.357,3676.3,3675.8,0.136]
[1754052879534,4.357,3676.4,3675.8,0.136]
[1754052879729,4.356,3676.4,3675.8,0.136]
[1754052879934,0.935,3676.3,3675.8,0.136]
[1754052880652,0.935,3676.3,3675.8,0.34319236]
[1754052881848,5.291,3676.3,3675.8,0.34319236]
[1754052882061,0.4782,3676.1,3675.8,0.34319236]
[1754052882869,0.4568,3676.2,3675.8,0.34319236]
[1754052883077,0.955,3675.9,3675.8,0.34319236]
[1754052884875,0.955,3675.9,3675.8,0.20719236]
[1754052885113,0.955,3675.9,3675.6,0.136]
[1754052885408,0.935,3675.8,3675.5,0.136]
[1754052885881,0.935,3675.7,3675.5,0.136]
[1754052886413,1e-08,3675.9,3675.8,2.72049621]
[1754052886614,0.09903283,3676.7,3675.8,2.72049621]
[1754052886615,0.09903283,3676.7,3676.5,0.55]
[1754052886776,0.09903283,3676.7,3676.6,3.0]
[1754052887176,0.09903283,3676.7,3676.6,0.4526]
[1754052887406,0.09903283,3676.7,3676.5,0.19936568]
[1754052887591,0.09903283,3676.7,3675.9,3.61217444]
[1754052887894,0.09903283,3676.7,3676.0,2.72010771]
[1754052888476,0.09903283,3676.7,3675.9,0.4526]
[1754052888676,0.9341,3676.6,3675.6,0.81724]
[1754052888876,0.4637,3676.5,3675.6,6.74031273]
[1754052889082,0.09903283,3676.7,3675.9,3.0]
[1754052889311,0.09903283,3676.7,3676.0,2.07108203]
[1754052889476,0.09903283,3676.7,3676.0,2.52368203]
[1754052889684,0.09903283,3676.7,3676.1,0.02720274]
[1754052889900,0.09903283,3676.7,3676.3,3.0]
[1754052890088,0.09903283,3676.7,3676.5,3.0]
[1754052890284,0.09903283,3676.7,3676.6,2.11500203]
[1754052891688,0.09903283,3676.7,3676.6,2.56760203]
[1754052893801,0.09903283,3676.7,3676.6,2.11500203]
[1754052894001,0.09903283,3676.7,3676.3,3.0]
[1754052894237,0.09903283,3676.7,3676.3,2.72010836]
[1754052894753,0.09903283,3676.7,3676.4,3.17264697]
[1754052894958,0.09903283,3676.7,3676.4,0.4526]
[1754052895306,0.09903283,3676.7,3676.3,3.0]
[1754052895502,0.09903283,3676.7,3676.4,1.32461848]
[1754052895736,0.09903283,3676.7,3676.4,0.4526]
[1754052895941,0.09903283,3676.7,3676.5,0.4526]
[1754052896310,0.09903283,3676.7,3676.5,1.269913]
[1754052896734,0.10003283,3676.7,3676.5,0.817313]
[1754052896907,0.10003283,3676.7,3676.6,0.136]
[1754052897729,1.03413283,3676.7,3676.6,0.136]
[1754052898528,0.10003283,3676.7,3676.6,2.85590425]
[1754052898724,0.15779439,3677.8,3676.8,2.7197563]
[1754052898931,0.62149439,3677.8,3677.0,3.55]
[1754052899138,0.62149439,3677.8,3677.0,7.375]
[1754052899350,0.15779439,3677.8,3677.1,1.23536]
[1754052899651,0.62149439,3677.8,3677.1,4.23536]
[1754052899865,0.62149439,3677.8,3677.1,3.0]
[1754052900065,0.9341,3677.7,3676.7,4.375]
[1754052900225,0.9341,3677.6,3676.7,3.0]
[1754052900427,0.4637,3677.6,3676.7,3.0]
[1754052900755,0.15779439,3677.8,3676.8,3.6115563]
[1754052900929,0.15779439,3677.8,3676.9,3.0]
[1754052901123,0.15779439,3677.8,3676.9,3.4526]
[1754052901561,0.15779439,3677.8,3676.9,6.17227569]
[1754052901729,0.15779439,3677.8,3676.9,3.4526]
[1754052901730,0.9341,3677.7,3676.9,3.4526]
[1754052901929,0.9341,3677.7,3676.9,6.17743276]
[1754052902323,0.15779439,3677.8,3677.1,2.71950725]
[1754052902522,0.15779439,3677.8,3677.0,0.4526]
[1754052902761,0.15779439,3677.8,3677.0,3.17220679]
[1754052902960,0.15779439,3677.8,3677.0,4.37779693]
[1754052903166,0.15779439,3677.8,3677.0,1.65819014]
[1754052903456,0.4637,3677.7,3676.7,3.0]
[1754052903664,0.4637,3677.7,3676.7,5.71981604]
[1754052903866,0.4637,3677.7,3676.7,3.0]
[1754052904825,0.4637,3677.7,3676.7,3.628195]
[1754052905034,0.15779439,3677.8,3677.5,3.0]
[1754052905351,0.15779439,3677.8,3677.5,3.4526]
[1754052905667,0.15779439,3677.8,3677.6,0.4526]
[1754052905861,0.15779439,3677.8,3677.7,0.4526]
[1754052906249,0.15779439,3677.8,3677.7,0.66143035]
[1754052906863,0.15779439,3677.8,3677.7,3.38052108]
[1754052907250,0.15779439,3677.8,3677.7,1.12513035]
[1754052908159,0.15779439,3677.8,3677.7,0.67253035]
[1754052908357,1.09189439,3677.8,3677.7,0.20883035]
[1754052908575,0.62149439,3677.8,3677.2,0.157795]
[1754052908764,0.15779439,3677.8,3677.3,3.17197208]
[1754052909074,0.15779439,3677.8,3677.7,0.136]
[1754052909472,0.15779439,3677.8,3677.7,0.5886]
[1754052910362,0.15779439,3677.8,3677.7,1.0278]
[1754052910566,0.15779439,3677.8,3677.7,1.67441941]
[1754052910860,0.15779439,3677.8,3677.7,1.23521941]
[1754052911974,0.15779439,3677.8,3677.7,7.39351014]
[1754052912477,0.15779439,3677.8,3677.7,7.94351014]
[1754052912686,0.02,3678.9,3678.1,2.71878594]
[1754052912855,0.02,3678.9,3678.2,3.4526]
[1754052913054,0.02,3678.9,3678.8,0.136]
[1754052915273,0.02,3678.9,3678.8,0.5886]
[1754052916207,0.02,3678.9,3678.8,0.136]
[1754052916810,0.9411,3678.9,3678.8,0.136]
[1754052917319,0.02,3678.9,3678.8,0.136]
[1754052917536,0.9411,3678.9,3677.7,1.10431941]
[1754052917675,0.9211,3678.8,3677.2,4.91270721]
[1754052917881,0.9211,3678.7,3678.2,0.136]
[1754052918118,0.9211,3678.6,3678.2,0.136]
[1754052918428,0.136,3678.3,3677.7,0.136]
[1754052918628,0.9211,3678.2,3677.7,0.136]
[1754052918836,0.9211,3678.1,3677.7,0.136]
[1754052919216,0.67961,3678.3,3677.7,0.136]
[1754052919531,0.67961,3678.3,3676.9,0.002]
[1754052919532,0.9211,3678.0,3676.9,0.002]
[1754052919737,1.203571,3678.0,3677.5,0.136]
[1754052919898,0.9211,3677.9,3677.7,0.136]
[1754052920300,0.146471,3678.0,3677.7,0.136]
[1754052920501,0.9211,3677.8,3677.7,0.136]
[1754052921707,4.8406,3678.2,3677.7,0.136]
[1754052921909,0.4545,3678.0,3677.7,0.136]
[1754052922110,0.4666,3678.0,3677.9,0.136]
[1754052922624,0.9211,3678.0,3677.9,0.136]
[1754052922794,4.375,3678.3,3677.9,0.136]
[1754052922992,0.9211,3678.2,3677.9,0.136]
[1754052923209,0.9211,3678.2,3678.1,0.136]
[1754052923534,1.0571,3678.6,3678.1,0.136]
[1754052923736,0.9211,3678.6,3678.1,0.136]
[1754052923965,0.021,3678.9,3677.8,0.4577]
[1754052923966,0.021,3678.9,3677.9,0.55]
[1754052924242,0.021,3678.9,3678.8,0.136]
[1754052924603,0.9421,3678.9,3678.8,0.3443112]
[1754052924801,0.9421,3678.9,3678.8,0.136]
[1754052925031,0.021,3678.9,3678.8,0.136]
[1754052926040,0.021,3678.9,3678.8,0.33581073]
[1754052926335,0.4876,3678.9,3678.8,0.33581073]
[1754052926706,1.47461,3678.9,3678.8,0.136]
[1754052926904,1.47461,3678.9,3677.5,0.4577]
[1754052927105,0.9211,3678.8,3678.4,0.136]
[1754052927635,0.9211,3678.7,3678.4,0.136]
[1754052928040,0.9211,3678.6,3678.4,0.136]
[1754052928250,0.9211,3678.5,3678.4,0.136]
[1754052928707,0.9211,3678.5,3677.0,0.4577]
[1754052928907,5.3011,3678.4,3677.3,0.817113]
[1754052929238,0.9211,3678.3,3677.3,0.817113]
[1754052929533,4.91011,3678.4,3677.3,0.817113]
[1754052929534,0.9211,3678.2,3677.3,0.817113]
[1754052929737,0.9211,3678.1,3677.9,0.136]
[1754052930247,0.9211,3678.0,3677.9,0.136]
[1754052930738,0.9211,3678.0,3676.9,0.21033616]
[1754052930939,0.9211,3677.9,3677.5,0.136]
[1754052931340,4.375,3677.8,3677.5,0.136]
[1754052931500,4.375,3677.8,3677.0,0.02719608]
[1754052931501,4.375,3677.7,3677.0,0.02719608]
[1754052931702,4.375,3677.7,3677.1,0.4577]
[1754052931927,4.375,3677.7,3677.6,0.136]
[1754052932125,5.2951,3677.7,3677.6,0.136]
[1754052932530,8.01419073,3677.7,3676.9,0.002]
[1754052932700,3.0,3677.5,3676.9,0.002]
[1754052932905,1.10142748,3677.4,3676.9,0.002]
[1754052933136,4.376,3677.3,3676.9,0.002]
[1754052933445,5.2971,3677.3,3676.9,0.002]
[1754052933660,0.9211,3677.2,3676.9,0.002]
[1754052933861,0.80164279,3677.1,3676.9,0.002]
[1754052934161,1.72178279,3677.1,3676.9,0.002]
[1754052934464,0.9211,3677.0,3676.9,0.002]
[1754052936159,4.373,3677.0,3676.9,0.002]
[1754052936377,4.375,3677.0,3676.9,0.4597]
[1754052936730,4.375,3677.0,3676.9,0.002]
[1754052937229,5.7336,3677.0,3676.9,0.002]
[1754052937951,1.3586,3677.0,3676.9,0.002]
[1754052938147,0.4666,3677.4,3676.9,0.002]
[1754052938336,4.374,3677.3,3676.9,0.002]
[1754052938861,0.9211,3677.2,3676.9,0.002]
[1754052939060,4.374,3677.1,3676.9,0.002]
[1754052939259,4.374,3677.0,3676.9,0.002]
[1754052939827,0.9211,3677.6,3676.9,0.002]
[1754052940074,4.372,3677.5,3676.9,0.002]
[1754052940381,4.372,3677.4,3676.9,0.4597]
[1754052940539,0.4666,3678.0,3676.9,0.4597]
[1754052940540,4.371,3677.3,3676.9,0.4597]
[1754052941130,4.371,3677.3,3676.9,0.002]
[1754052941363,0.9211,3677.2,3676.9,0.002]
[1754052941793,0.9211,3677.1,3676.9,0.002]
[1754052941967,4.37,3677.0,3676.9,0.002]
[1754052942277,5.2911,3677.0,3676.9,0.002]
[1754052942639,0.9211,3677.0,3676.9,0.002]
[1754052942964,4.8376,3677.0,3676.9,0.002]
[1754052943479,0.4666,3677.0,3676.9,0.002]
[1754052943637,4.8356,3677.0,3676.9,0.002]
[1754052944035,5.83271,3677.0,3676.9,0.002]
[1754052945148,11.55231837,3677.0,3676.9,0.002]
[1754052945348,12.10231837,3677.0,3676.9,0.002]
[1754052945678,13.74431837,3677.0,3676.9,0.002]
[1754052945973,13.74031837,3677.0,3676.9,0.002]
[1754052946471,12.09831837,3677.0,3676.9,0.002]
[1754052947060,2.71990425,3676.6,3676.5,0.002]
[1754052947261,18.47513165,3676.6,3676.5,0.002]
[1754052947447,19.94573165,3676.6,3676.5,0.002]
[1754052951972,49.93673165,3676.6,3676.5,0.002]
[1754052952186,17.0808274,3676.6,3676.5,0.002]
[1754052952412,16.6678274,3676.6,3676.5,0.002]
[1754052952570,11.3922274,3676.6,3676.5,0.002]
[1754052952748,11.028,3676.6,3676.5,0.002]
[1754052953609,6.672,3676.6,3676.5,0.002]
[1754052953891,6.536,3676.6,3676.5,0.8963]
[1754052954186,10.89,3676.6,3676.5,1.0323]
[1754052954386,17.89,3676.6,3676.5,1.0323]
[1754052954748,17.89,3676.6,3676.5,0.8963]
[1754052956190,13.536,3676.6,3676.5,0.8963]
[1754052956355,17.892,3676.6,3676.5,0.8963]
[1754052956562,4.351,3676.6,3676.5,0.8963]